[Event "*** SCC Grand Prix: Titled Tuesday Blitz"]
[Site "Chess.com"]
[Date "2020.07.07"]
[Round "5"]
[White "Jbd735"]
[Black "Roza_Idrisova"]
[Result "0-1"]
[WhiteElo "2439"]
[BlackElo "2236"]
[TimeControl "180+1"]
[EndTime "10:55:16 PDT"]
[Termination "Roza_Idrisova won on time"]

1. e4 {[%clk 0:03:00.9]} 1... c6 {[%clk 0:02:59.6]} 2. d4 {[%clk 0:03:00.8]}
2... d5 {[%clk 0:02:59.2]} 3. Nc3 {[%clk 0:03:01.3]} 3... a6 {[%clk 0:02:58.5]}
4. Bd3 {[%clk 0:02:46.8]} 4... dxe4 {[%clk 0:02:54.9]} 5. Bxe4 {[%clk
0:02:45.5]} 5... Nf6 {[%clk 0:02:53.9]} 6. Bf3 {[%clk 0:02:45.8]} 6... Bf5
{[%clk 0:02:53.3]} 7. Nge2 {[%clk 0:02:45]} 7... e6 {[%clk 0:02:53.4]} 8. O-O
{[%clk 0:02:29.9]} 8... Be7 {[%clk 0:02:52.9]} 9. Bf4 {[%clk 0:02:26]} 9... O-O
{[%clk 0:02:51.5]} 10. Re1 {[%clk 0:02:24.7]} 10... Nbd7 {[%clk 0:02:51.1]} 11.
Qd2 {[%clk 0:02:19.7]} 11... Nb6 {[%clk 0:02:49]} 12. Ng3 {[%clk 0:02:16.6]}
12... Bg6 {[%clk 0:02:47.9]} 13. Rad1 {[%clk 0:02:07.1]} 13... Nc4 {[%clk
0:02:42]} 14. Qc1 {[%clk 0:02:07.2]} 14... Qb6 {[%clk 0:02:40.5]} 15. Na4 {[%clk
0:01:45.1]} 15... Qa5 {[%clk 0:02:33.4]} 16. b3 {[%clk 0:01:42]} 16... Na3
{[%clk 0:02:06.3]} 17. c4 {[%clk 0:01:09.9]} 17... Rad8 {[%clk 0:01:56.5]} 18.
Re5 {[%clk 0:01:00.9]} 18... b5 {[%clk 0:01:41.2]} 19. Bxc6 {[%clk 0:00:33.7]}
19... Ng4 {[%clk 0:01:33]} 20. cxb5 {[%clk 0:00:17.5]} 20... Nxe5 {[%clk
0:01:28.7]} 21. Bxe5 {[%clk 0:00:17.5]} 21... axb5 {[%clk 0:01:25.3]} 22. Nc5
{[%clk 0:00:13.4]} 22... Bxc5 {[%clk 0:01:07.3]} 23. Qxc5 {[%clk 0:00:12.8]}
23... Rc8 {[%clk 0:00:55.3]} 24. h4 {[%clk 0:00:09.3]} 24... h5 {[%clk 0:00:54]}
25. Bd6 {[%clk 0:00:08.2]} 25... Qa6 {[%clk 0:00:46.7]} 26. Bxf8 {[%clk
0:00:05.9]} 26... Rxf8 {[%clk 0:00:43.8]} 27. Rc1 {[%clk 0:00:03.9]} 27... Rc8
{[%clk 0:00:41.6]} 28. Qd6 {[%clk 0:00:03.3]} 28... Nc2 {[%clk 0:00:39.9]} 29.
f4 {[%clk 0:00:02.3]} 29... Qxc6 {[%clk 0:00:36.5]} 30. Qe5 {[%clk 0:00:02.4]}
30... Qd5 {[%clk 0:00:33.8]} 31. Qe2 {[%clk 0:00:02]} 31... Rc3 {[%clk
0:00:31.6]} 0-1

[Event "*** SCC Grand Prix: Titled Tuesday Blitz"]
[Site "Chess.com"]
[Date "2020.07.07"]
[Round "5"]
[White "orrbaverlekszarnyon"]
[Black "I_Hit_18K_on_BS"]
[Result "1-0"]
[WhiteElo "2194"]
[BlackElo "2035"]
[TimeControl "180+1"]
[EndTime "10:55:17 PDT"]
[Termination "orrbaverlekszarnyon won on time"]

1. e4 {[%clk 0:03:00.9]} 1... c5 {[%clk 0:02:59.7]} 2. Nf3 {[%clk 0:03:00.6]}
2... d6 {[%clk 0:03:00.6]} 3. d4 {[%clk 0:02:59.8]} 3... cxd4 {[%clk 0:03:01.2]}
4. Nxd4 {[%clk 0:03:00.6]} 4... Nf6 {[%clk 0:03:01.8]} 5. Nc3 {[%clk 0:03:01]}
5... a6 {[%clk 0:03:02.4]} 6. h4 {[%clk 0:03:01.2]} 6... e5 {[%clk 0:03:01.9]}
7. Nde2 {[%clk 0:02:58.9]} 7... Be6 {[%clk 0:03:01.7]} 8. Bg5 {[%clk 0:02:58.2]}
8... Nbd7 {[%clk 0:03:01]} 9. Qd2 {[%clk 0:02:58.1]} 9... h6 {[%clk 0:03:00.4]}
10. Bxf6 {[%clk 0:02:57.5]} 10... Nxf6 {[%clk 0:03:00.2]} 11. O-O-O {[%clk
0:02:56.8]} 11... Be7 {[%clk 0:03:00.3]} 12. f3 {[%clk 0:02:56.8]} 12... b5
{[%clk 0:02:58.6]} 13. g4 {[%clk 0:02:55.1]} 13... Qc7 {[%clk 0:02:52.6]} 14.
Kb1 {[%clk 0:02:50.4]} 14... Nd7 {[%clk 0:02:38.4]} 15. Nd5 {[%clk 0:02:46.9]}
15... Bxd5 {[%clk 0:02:37.7]} 16. exd5 {[%clk 0:02:47.8]} 16... Nb6 {[%clk
0:02:37.1]} 17. f4 {[%clk 0:02:47.5]} 17... Nc4 {[%clk 0:02:36]} 18. Qd3 {[%clk
0:02:44.2]} 18... Rc8 {[%clk 0:02:34.2]} 19. c3 {[%clk 0:02:20.4]} 19... Bf6
{[%clk 0:02:27.7]} 20. Bg2 {[%clk 0:02:13.5]} 20... b4 {[%clk 0:01:47.4]} 21. g5
{[%clk 0:02:11.6]} 21... hxg5 {[%clk 0:01:42.1]} 22. hxg5 {[%clk 0:02:12.5]}
22... Rxh1 {[%clk 0:01:41.2]} 23. Rxh1 {[%clk 0:02:12.5]} 23... Be7 {[%clk
0:01:40.6]} 24. Rh8+ {[%clk 0:01:58.6]} 24... Bf8 {[%clk 0:01:40.1]} 25. Qf5
{[%clk 0:01:54.7]} 25... Ne3 {[%clk 0:01:32.6]} 26. Qe4 {[%clk 0:01:49.9]} 26...
Nxg2 {[%clk 0:01:31.1]} 27. Qxg2 {[%clk 0:01:50.8]} 27... Qc4 {[%clk 0:01:27.4]}
28. g6 {[%clk 0:01:44]} 28... Qd3+ {[%clk 0:01:12.4]} 29. Kc1 {[%clk 0:01:39]}
29... Qxg6 {[%clk 0:01:02.4]} 30. Qh3 {[%clk 0:01:30.2]} 30... Rc7 {[%clk
0:00:47.3]} 31. Qe3 {[%clk 0:01:21.6]} 31... Qf5 {[%clk 0:00:20.2]} 32. Qb6
{[%clk 0:01:18.3]} 32... Qc8 {[%clk 0:00:15.6]} 33. Qxd6 {[%clk 0:01:15.6]}
33... Re7 {[%clk 0:00:10.6]} 34. fxe5 {[%clk 0:01:13.4]} 34... bxc3 {[%clk
0:00:09.7]} 35. Nxc3 {[%clk 0:01:12.4]} 35... Qg4 {[%clk 0:00:09.2]} 36. Qb8+
{[%clk 0:01:03.9]} 36... Kd7 {[%clk 0:00:09.1]} 37. Qd6+ {[%clk 0:00:58.8]}
37... Ke8 {[%clk 0:00:08.4]} 38. Qc6+ {[%clk 0:00:59]} 38... Rd7 {[%clk
0:00:07.2]} 39. e6 {[%clk 0:00:57.7]} 39... Qg1+ {[%clk 0:00:06.3]} 40. Kc2
{[%clk 0:00:56.3]} 40... Qf2+ {[%clk 0:00:05.7]} 41. Kb3 {[%clk 0:00:56]} 41...
fxe6 {[%clk 0:00:02.8]} 42. dxe6 {[%clk 0:00:56.6]} 1-0

[Event "*** SCC Grand Prix: Titled Tuesday Blitz"]
[Site "Chess.com"]
[Date "2020.07.07"]
[Round "5"]
[White "FairChess_on_YouTube"]
[Black "dey2580"]
[Result "1-0"]
[WhiteElo "2987"]
[BlackElo "2577"]
[TimeControl "180+1"]
[EndTime "10:55:20 PDT"]
[Termination "FairChess_on_YouTube won on time"]

1. Nf3 {[%clk 0:02:59]} 1... Nf6 {[%clk 0:02:59.1]} 2. c4 {[%clk 0:02:58.1]}
2... e6 {[%clk 0:02:59.2]} 3. Nc3 {[%clk 0:02:56.3]} 3... Bb4 {[%clk 0:02:57.7]}
4. g4 {[%clk 0:02:53.4]} 4... d5 {[%clk 0:02:53.4]} 5. g5 {[%clk 0:02:43.5]}
5... Bxc3 {[%clk 0:02:42]} 6. bxc3 {[%clk 0:02:39.3]} 6... Ne4 {[%clk
0:02:41.7]} 7. d3 {[%clk 0:02:34]} 7... Nd6 {[%clk 0:02:17.9]} 8. h4 {[%clk
0:02:02.5]} 8... dxc4 {[%clk 0:02:05.7]} 9. h5 {[%clk 0:02:02.5]} 9... Nc6
{[%clk 0:01:58.2]} 10. d4 {[%clk 0:01:54]} 10... Bd7 {[%clk 0:01:32.3]} 11. Bf4
{[%clk 0:01:36.6]} 11... Qe7 {[%clk 0:01:30.8]} 12. h6 {[%clk 0:01:34.3]} 12...
g6 {[%clk 0:01:26.5]} 13. e3 {[%clk 0:01:31.4]} 13... b5 {[%clk 0:01:14.7]} 14.
a4 {[%clk 0:01:14.1]} 14... b4 {[%clk 0:01:14.2]} 15. cxb4 {[%clk 0:01:12]}
15... Ne4 {[%clk 0:01:08.8]} 16. b5 {[%clk 0:00:59]} 16... Qb4+ {[%clk
0:01:07.9]} 17. Nd2 {[%clk 0:00:59]} 17... Na5 {[%clk 0:01:01]} 18. Bg2 {[%clk
0:00:59.1]} 18... f5 {[%clk 0:00:11]} 19. gxf6 {[%clk 0:00:50]} 19... Nxd2
{[%clk 0:00:09.2]} 20. Qxd2 {[%clk 0:00:45.9]} 20... c3 {[%clk 0:00:08.3]} 21.
Qc2 {[%clk 0:00:40.2]} 21... c6 {[%clk 0:00:08.4]} 22. O-O {[%clk 0:00:32.5]}
22... Rc8 {[%clk 0:00:06.6]} 23. Rab1 {[%clk 0:00:24.5]} 23... Qc4 {[%clk
0:00:06.7]} 24. b6 {[%clk 0:00:22.9]} 24... axb6 {[%clk 0:00:05.6]} 25. Rxb6
{[%clk 0:00:21.4]} 25... Kf7 {[%clk 0:00:05.5]} 26. Rc1 {[%clk 0:00:21.2]} 26...
g5 {[%clk 0:00:01.2]} 27. Be5 {[%clk 0:00:18.1]} 1-0

[Event "*** SCC Grand Prix: Titled Tuesday Blitz"]
[Site "Chess.com"]
[Date "2020.07.07"]
[Round "5"]
[White "xberli"]
[Black "AquivaRubinstein"]
[Result "1-0"]
[WhiteElo "2312"]
[BlackElo "2463"]
[TimeControl "180+1"]
[EndTime "10:55:20 PDT"]
[Termination "xberli won by resignation"]

1. e4 {[%clk 0:03:00.9]} 1... e5 {[%clk 0:02:59.4]} 2. Nf3 {[%clk 0:03:00.7]}
2... Nc6 {[%clk 0:02:59.3]} 3. Bb5 {[%clk 0:03:00.2]} 3... Nf6 {[%clk 0:02:59]}
4. d3 {[%clk 0:02:57.2]} 4... Bc5 {[%clk 0:02:58]} 5. Nbd2 {[%clk 0:02:51.5]}
5... O-O {[%clk 0:02:50.2]} 6. Bxc6 {[%clk 0:02:49.3]} 6... dxc6 {[%clk
0:02:49.6]} 7. Qe2 {[%clk 0:02:49.8]} 7... Nd7 {[%clk 0:02:43.8]} 8. g4 {[%clk
0:02:47.3]} 8... Re8 {[%clk 0:02:42.4]} 9. g5 {[%clk 0:02:44.8]} 9... Nf8 {[%clk
0:02:42.3]} 10. Nc4 {[%clk 0:02:43.1]} 10... Bg4 {[%clk 0:02:30.2]} 11. Ne3
{[%clk 0:02:38.4]} 11... Bh5 {[%clk 0:02:25.8]} 12. Bd2 {[%clk 0:02:32.5]} 12...
Ne6 {[%clk 0:02:24.6]} 13. Nf5 {[%clk 0:02:31.1]} 13... g6 {[%clk 0:02:11.2]}
14. Nh6+ {[%clk 0:02:29.1]} 14... Kg7 {[%clk 0:02:09.8]} 15. c3 {[%clk
0:02:25.5]} 15... f6 {[%clk 0:01:40.5]} 16. h3 {[%clk 0:02:13.5]} 16... fxg5
{[%clk 0:01:35.6]} 17. Ng4 {[%clk 0:02:12.8]} 17... Nf4 {[%clk 0:01:32]} 18.
Bxf4 {[%clk 0:02:11.8]} 18... gxf4 {[%clk 0:01:32.2]} 19. O-O-O {[%clk 0:02:11]}
19... Qe7 {[%clk 0:01:23.6]} 20. Rhg1 {[%clk 0:01:59]} 20... b5 {[%clk
0:01:22.2]} 21. d4 {[%clk 0:01:51.8]} 21... Bd6 {[%clk 0:01:17.8]} 22. dxe5
{[%clk 0:01:46.2]} 22... Bc5 {[%clk 0:01:17]} 23. Qd2 {[%clk 0:01:41.8]} 23...
Rf8 {[%clk 0:01:12.4]} 24. Qd7 {[%clk 0:01:38.3]} 24... Rad8 {[%clk 0:00:58.7]}
25. Qxc6 {[%clk 0:01:33.9]} 25... Bxg4 {[%clk 0:00:53.3]} 26. hxg4 {[%clk
0:01:31.8]} 26... Bxf2 {[%clk 0:00:53.2]} 27. Rh1 {[%clk 0:01:30.6]} 27... Be3+
{[%clk 0:00:52.7]} 28. Kc2 {[%clk 0:01:30.3]} 28... b4 {[%clk 0:00:47.3]} 29. g5
{[%clk 0:01:12.9]} 29... a5 {[%clk 0:00:39.3]} 30. Rxd8 {[%clk 0:01:08.8]} 30...
Rxd8 {[%clk 0:00:36.9]} 31. Qf6+ {[%clk 0:01:08.1]} 31... Qxf6 {[%clk
0:00:32.7]} 32. exf6+ {[%clk 0:01:08]} 32... Kg8 {[%clk 0:00:32.1]} 33. e5
{[%clk 0:01:06.4]} 33... Re8 {[%clk 0:00:19.9]} 34. Rd1 {[%clk 0:01:04.2]} 34...
Kf7 {[%clk 0:00:16.6]} 35. Rd7+ {[%clk 0:00:59.2]} 35... Ke6 {[%clk 0:00:17]}
36. Rxh7 {[%clk 0:00:59.1]} 36... Kf5 {[%clk 0:00:17.4]} 37. Re7 {[%clk
0:00:56.3]} 37... Rd8 {[%clk 0:00:16.9]} 38. e6 {[%clk 0:00:50.9]} 38... Ke4
{[%clk 0:00:17.2]} 39. Rd7 {[%clk 0:00:49.7]} 39... Re8 {[%clk 0:00:14.8]} 40.
f7 {[%clk 0:00:49.8]} 40... Rh8 {[%clk 0:00:12.9]} 41. Nd2+ {[%clk 0:00:46.5]}
41... Bxd2 {[%clk 0:00:12.2]} 42. Rxd2 {[%clk 0:00:47.4]} 1-0

[Event "*** SCC Grand Prix: Titled Tuesday Blitz"]
[Site "Chess.com"]
[Date "2020.07.07"]
[Round "5"]
[White "IMHansNiemann"]
[Black "dalmatinac101"]
[Result "1-0"]
[WhiteElo "2941"]
[BlackElo "2809"]
[TimeControl "180+1"]
[EndTime "10:55:21 PDT"]
[Termination "IMHansNiemann won on time"]

1. d4 {[%clk 0:03:00.9]} 1... Nf6 {[%clk 0:02:51.1]} 2. Nc3 {[%clk 0:03:00.6]}
2... d5 {[%clk 0:02:47.9]} 3. Bf4 {[%clk 0:03:01.2]} 3... e6 {[%clk 0:02:48.2]}
4. e3 {[%clk 0:03:01.2]} 4... Bb4 {[%clk 0:02:47.9]} 5. Ne2 {[%clk 0:02:57.6]}
5... Nh5 {[%clk 0:02:47.8]} 6. a3 {[%clk 0:02:45.4]} 6... Be7 {[%clk 0:02:47.7]}
7. Bg3 {[%clk 0:02:43.2]} 7... Nd7 {[%clk 0:02:40.9]} 8. Nf4 {[%clk 0:02:41.4]}
8... Nxg3 {[%clk 0:02:41]} 9. hxg3 {[%clk 0:02:42.3]} 9... Nf6 {[%clk
0:02:40.6]} 10. g4 {[%clk 0:02:38]} 10... a6 {[%clk 0:02:00.2]} 11. g5 {[%clk
0:02:32.5]} 11... Ne4 {[%clk 0:01:23.3]} 12. Nxe4 {[%clk 0:02:32]} 12... dxe4
{[%clk 0:01:24.2]} 13. g6 {[%clk 0:02:32.5]} 13... O-O {[%clk 0:01:17.2]} 14.
Rxh7 {[%clk 0:02:14.1]} 14... fxg6 {[%clk 0:01:17]} 15. Nxg6 {[%clk 0:01:36.2]}
15... Bb4+ {[%clk 0:00:42.7]} 16. axb4 {[%clk 0:01:30.1]} 16... Kxh7 {[%clk
0:00:43.6]} 17. Qh5+ {[%clk 0:01:29.9]} 17... Kg8 {[%clk 0:00:44]} 18. Qh8+
{[%clk 0:01:30.1]} 18... Kf7 {[%clk 0:00:44.3]} 19. Ne5+ {[%clk 0:01:30.8]}
19... Ke8 {[%clk 0:00:36.8]} 20. Qh5+ {[%clk 0:01:30.3]} 20... Ke7 {[%clk
0:00:36.6]} 21. Qg5+ {[%clk 0:01:30.9]} 21... Rf6 {[%clk 0:00:28.7]} 22. Qxg7+
{[%clk 0:01:30]} 22... Ke8 {[%clk 0:00:28.3]} 23. Ng6 {[%clk 0:00:42.1]} 23...
Rf5 {[%clk 0:00:07.9]} 24. g4 {[%clk 0:00:31.4]} 24... Rf3 {[%clk 0:00:04.3]}
25. Bg2 {[%clk 0:00:30]} 25... Qf6 {[%clk 0:00:04.3]} 26. Qg8+ {[%clk
0:00:29.5]} 26... Kd7 {[%clk 0:00:04.6]} 27. Ne5+ {[%clk 0:00:29.3]} 27... Ke7
{[%clk 0:00:04.1]} 28. Bxf3 {[%clk 0:00:29.5]} 28... exf3 {[%clk 0:00:05]} 29.
O-O-O {[%clk 0:00:29]} 29... Qh6 {[%clk 0:00:03.3]} 30. Qf7+ {[%clk 0:00:24.2]}
30... Kd8 {[%clk 0:00:01.8]} 31. g5 {[%clk 0:00:24]} 1-0

[Event "*** SCC Grand Prix: Titled Tuesday Blitz"]
[Site "Chess.com"]
[Date "2020.07.07"]
[Round "5"]
[White "DivyaDeshmukh23"]
[Black "Omk124"]
[Result "0-1"]
[WhiteElo "2501"]
[BlackElo "2384"]
[TimeControl "180+1"]
[EndTime "10:55:21 PDT"]
[Termination "Omk124 won by resignation"]

1. e4 {[%clk 0:03:00.9]} 1... g6 {[%clk 0:02:59.2]} 2. d4 {[%clk 0:03:00.1]}
2... Bg7 {[%clk 0:02:58.8]} 3. Nc3 {[%clk 0:03:01]} 3... c6 {[%clk 0:02:58]} 4.
Be3 {[%clk 0:02:58.7]} 4... d5 {[%clk 0:02:57.7]} 5. e5 {[%clk 0:02:58.1]} 5...
Nh6 {[%clk 0:02:57]} 6. Bd3 {[%clk 0:02:55.6]} 6... O-O {[%clk 0:02:54.6]} 7.
Qd2 {[%clk 0:02:53.6]} 7... Ng4 {[%clk 0:02:53.7]} 8. Bf4 {[%clk 0:02:44.3]}
8... f6 {[%clk 0:02:52.5]} 9. e6 {[%clk 0:02:42]} 9... f5 {[%clk 0:02:46.9]} 10.
h4 {[%clk 0:02:37.8]} 10... Bxe6 {[%clk 0:02:43.2]} 11. h5 {[%clk 0:02:34.9]}
11... Bxd4 {[%clk 0:02:42.7]} 12. hxg6 {[%clk 0:02:31.9]} 12... hxg6 {[%clk
0:02:40]} 13. Nh3 {[%clk 0:01:48.4]} 13... Nd7 {[%clk 0:02:32.3]} 14. O-O-O
{[%clk 0:01:25.8]} 14... Bg7 {[%clk 0:02:21.6]} 15. Ng5 {[%clk 0:01:24.1]} 15...
Bf7 {[%clk 0:02:20.7]} 16. f3 {[%clk 0:01:06.6]} 16... Ngf6 {[%clk 0:02:19.1]}
17. Rde1 {[%clk 0:00:52.8]} 17... Re8 {[%clk 0:02:12.3]} 18. g4 {[%clk
0:00:34.6]} 18... e5 {[%clk 0:02:10.3]} 19. gxf5 {[%clk 0:00:32.9]} 19... exf4
{[%clk 0:02:09]} 20. fxg6 {[%clk 0:00:32.1]} 20... Rxe1+ {[%clk 0:01:59.3]} 21.
Qxe1 {[%clk 0:00:33]} 21... Be8 {[%clk 0:01:59.7]} 22. Qe6+ {[%clk 0:00:31.6]}
22... Kf8 {[%clk 0:01:56.2]} 23. Nh7+ {[%clk 0:00:29.6]} 23... Nxh7 {[%clk
0:01:54.6]} 24. gxh7 {[%clk 0:00:30.5]} 24... Qf6 {[%clk 0:01:36.1]} 25. Qg8+
{[%clk 0:00:24.8]} 25... Ke7 {[%clk 0:01:35]} 26. h8=Q {[%clk 0:00:18.7]} 26...
Bxh8 {[%clk 0:01:34.5]} 27. Rxh8 {[%clk 0:00:19.3]} 27... Ne5 {[%clk 0:01:27.8]}
28. Rh7+ {[%clk 0:00:18.7]} 28... Kd6 {[%clk 0:01:27.5]} 29. Qg1 {[%clk
0:00:08.2]} 29... Nxd3+ {[%clk 0:01:24.1]} 30. cxd3 {[%clk 0:00:08.3]} 30... Bg6
{[%clk 0:01:24.4]} 31. Rh6 {[%clk 0:00:08.2]} 31... Rg8 {[%clk 0:01:23.9]} 32.
Qxa7 {[%clk 0:00:08.2]} 32... Qe6 {[%clk 0:01:10.9]} 33. Qa3+ {[%clk 0:00:05.5]}
33... Kd7 {[%clk 0:01:07.5]} 34. Rh1 {[%clk 0:00:04.4]} 34... Qe3+ {[%clk
0:01:06.3]} 35. Kb1 {[%clk 0:00:04.5]} 35... Qxd3+ {[%clk 0:01:06.3]} 36. Ka1
{[%clk 0:00:05.1]} 36... Qxf3 {[%clk 0:01:07.2]} 37. Re1 {[%clk 0:00:04.5]}
37... Re8 {[%clk 0:01:05.8]} 38. Rc1 {[%clk 0:00:04.5]} 38... Qe3 {[%clk
0:01:04.6]} 39. Rh1 {[%clk 0:00:04.6]} 39... Qe1+ {[%clk 0:01:03.3]} 0-1

[Event "*** SCC Grand Prix: Titled Tuesday Blitz"]
[Site "Chess.com"]
[Date "2020.07.07"]
[Round "5"]
[White "NewBornNow"]
[Black "ErikRonka"]
[Result "1-0"]
[WhiteElo "2669"]
[BlackElo "2392"]
[TimeControl "180+1"]
[EndTime "10:55:24 PDT"]
[Termination "NewBornNow won by checkmate"]

1. e4 {[%clk 0:03:00.9]} 1... c6 {[%clk 0:02:59.7]} 2. d4 {[%clk 0:02:59.2]}
2... d5 {[%clk 0:03:00.6]} 3. e5 {[%clk 0:02:58.8]} 3... c5 {[%clk 0:03:00.9]}
4. c4 {[%clk 0:02:56.7]} 4... cxd4 {[%clk 0:02:57.7]} 5. Nf3 {[%clk 0:02:54.7]}
5... Bg4 {[%clk 0:02:53.5]} 6. Qxd4 {[%clk 0:02:49.7]} 6... Bxf3 {[%clk
0:02:48.6]} 7. gxf3 {[%clk 0:02:49.7]} 7... Nc6 {[%clk 0:02:44.5]} 8. Qxd5
{[%clk 0:02:49.2]} 8... e6 {[%clk 0:02:43.6]} 9. Qxd8+ {[%clk 0:02:44.6]} 9...
Rxd8 {[%clk 0:02:42.9]} 10. Nc3 {[%clk 0:02:40.6]} 10... Nxe5 {[%clk 0:02:25.6]}
11. Be3 {[%clk 0:02:23.8]} 11... Nc6 {[%clk 0:02:16.3]} 12. a3 {[%clk 0:02:10]}
12... Nge7 {[%clk 0:02:10.3]} 13. Rd1 {[%clk 0:01:59]} 13... Nf5 {[%clk
0:02:00.5]} 14. Rxd8+ {[%clk 0:01:57.5]} 14... Kxd8 {[%clk 0:02:01]} 15. Bd3
{[%clk 0:01:56.1]} 15... Nxe3 {[%clk 0:01:51.8]} 16. fxe3 {[%clk 0:01:55.2]}
16... g6 {[%clk 0:01:51.4]} 17. Ne4 {[%clk 0:01:39.5]} 17... Kc7 {[%clk
0:01:47.6]} 18. Ke2 {[%clk 0:01:33.5]} 18... Be7 {[%clk 0:01:37.9]} 19. f4
{[%clk 0:01:29.3]} 19... e5 {[%clk 0:01:31.3]} 20. Nc3 {[%clk 0:01:15.2]} 20...
Bd6 {[%clk 0:01:15.9]} 21. f5 {[%clk 0:01:12]} 21... a6 {[%clk 0:01:05.7]} 22.
Rf1 {[%clk 0:01:03]} 22... Nd8 {[%clk 0:00:58.2]} 23. Nd5+ {[%clk 0:00:58]}
23... Kd7 {[%clk 0:00:50.6]} 24. Be4 {[%clk 0:00:56.7]} 24... b5 {[%clk
0:00:43.3]} 25. cxb5 {[%clk 0:00:50.2]} 25... axb5 {[%clk 0:00:44.2]} 26. Rd1
{[%clk 0:00:47.7]} 26... gxf5 {[%clk 0:00:18.1]} 27. Bxf5+ {[%clk 0:00:44.1]}
27... Kc6 {[%clk 0:00:18.2]} 28. Be4 {[%clk 0:00:38.6]} 28... Ne6 {[%clk
0:00:12.4]} 29. Nc3+ {[%clk 0:00:34.3]} 29... Kc5 {[%clk 0:00:09.5]} 30. Rd5+
{[%clk 0:00:30.5]} 30... Kc4 {[%clk 0:00:09.6]} 31. Rxb5 {[%clk 0:00:22]} 31...
Nc5 {[%clk 0:00:06.7]} 32. Bd5# {[%clk 0:00:19.6]} 1-0

[Event "*** SCC Grand Prix: Titled Tuesday Blitz"]
[Site "Chess.com"]
[Date "2020.07.07"]
[Round "5"]
[White "Vaathi_Coming"]
[Black "druskacik"]
[Result "1-0"]
[WhiteElo "2887"]
[BlackElo "2578"]
[TimeControl "180+1"]
[EndTime "10:55:24 PDT"]
[Termination "Vaathi_Coming won on time"]

1. Nf3 {[%clk 0:03:00.9]} 1... d5 {[%clk 0:02:58.3]} 2. d4 {[%clk 0:03:00.9]}
2... Nf6 {[%clk 0:02:57.9]} 3. Bf4 {[%clk 0:03:01.6]} 3... c5 {[%clk 0:02:57.3]}
4. e3 {[%clk 0:03:01.9]} 4... Nc6 {[%clk 0:02:57.5]} 5. dxc5 {[%clk 0:02:57]}
5... e6 {[%clk 0:02:43.6]} 6. c4 {[%clk 0:02:53]} 6... Bxc5 {[%clk 0:02:37.7]}
7. Nc3 {[%clk 0:02:52.8]} 7... O-O {[%clk 0:02:31.8]} 8. cxd5 {[%clk 0:02:49.6]}
8... exd5 {[%clk 0:02:25]} 9. Be2 {[%clk 0:02:49.5]} 9... Be6 {[%clk 0:02:19.1]}
10. O-O {[%clk 0:02:49.7]} 10... Rc8 {[%clk 0:02:18.5]} 11. Rc1 {[%clk
0:02:49.8]} 11... Qe7 {[%clk 0:02:11.2]} 12. Na4 {[%clk 0:02:43.7]} 12... Bd6
{[%clk 0:02:05.7]} 13. Bxd6 {[%clk 0:02:43.9]} 13... Qxd6 {[%clk 0:02:05.8]} 14.
Nd4 {[%clk 0:02:44.4]} 14... Nxd4 {[%clk 0:01:39.5]} 15. Qxd4 {[%clk 0:02:45.3]}
15... b6 {[%clk 0:01:39.7]} 16. h3 {[%clk 0:02:45]} 16... Rxc1 {[%clk
0:01:35.8]} 17. Rxc1 {[%clk 0:02:44.1]} 17... Rc8 {[%clk 0:01:36.7]} 18. Nc3
{[%clk 0:02:36.5]} 18... h6 {[%clk 0:01:26.7]} 19. Rd1 {[%clk 0:02:36.9]} 19...
Qc5 {[%clk 0:01:25.8]} 20. Bf3 {[%clk 0:02:37]} 20... Qxd4 {[%clk 0:01:23]} 21.
Rxd4 {[%clk 0:02:37.9]} 21... Kf8 {[%clk 0:01:15.3]} 22. Kf1 {[%clk 0:02:37]}
22... Ke7 {[%clk 0:01:14.7]} 23. Ke1 {[%clk 0:02:37.3]} 23... Rc5 {[%clk
0:01:12.8]} 24. Kd2 {[%clk 0:02:36.6]} 24... Rc4 {[%clk 0:01:04.9]} 25. Ne2
{[%clk 0:02:22.4]} 25... Rxd4+ {[%clk 0:01:02.9]} 26. Nxd4 {[%clk 0:02:23.3]}
26... Bd7 {[%clk 0:00:58]} 27. Bd1 {[%clk 0:02:19.1]} 27... Kd6 {[%clk
0:00:56.3]} 28. Bc2 {[%clk 0:02:15.7]} 28... a5 {[%clk 0:00:49.1]} 29. g4 {[%clk
0:02:11.3]} 29... g5 {[%clk 0:00:39.6]} 30. f3 {[%clk 0:02:10.1]} 30... Be6
{[%clk 0:00:31.3]} 31. Bd3 {[%clk 0:02:07.3]} 31... Nd7 {[%clk 0:00:30.8]} 32.
Nb5+ {[%clk 0:01:55.2]} 32... Kc5 {[%clk 0:00:25.6]} 33. Nd4 {[%clk 0:01:56.1]}
33... Kd6 {[%clk 0:00:25.6]} 34. a3 {[%clk 0:01:55.1]} 34... Nc5 {[%clk
0:00:25.1]} 35. Bc2 {[%clk 0:01:55.5]} 35... Nd7 {[%clk 0:00:20.1]} 36. Kc3
{[%clk 0:01:55.8]} 36... Nc5 {[%clk 0:00:20.1]} 37. b4 {[%clk 0:01:54.9]} 37...
axb4+ {[%clk 0:00:20.9]} 38. Kxb4 {[%clk 0:01:55.8]} 38... Bd7 {[%clk
0:00:20.5]} 39. Bf5 {[%clk 0:01:54.3]} 39... Na6+ {[%clk 0:00:19.1]} 40. Kc3
{[%clk 0:01:53.5]} 40... Be6 {[%clk 0:00:14.2]} 41. Kb3 {[%clk 0:01:38.3]} 41...
Ke5 {[%clk 0:00:12.6]} 42. Ka4 {[%clk 0:01:36.5]} 42... Nc5+ {[%clk 0:00:11.1]}
43. Kb5 {[%clk 0:01:36.6]} 43... Bxf5 {[%clk 0:00:08.9]} 44. Nxf5 {[%clk
0:01:33.6]} 44... h5 {[%clk 0:00:06.6]} 45. Kxb6 {[%clk 0:01:32.3]} 45... Na4+
{[%clk 0:00:06.1]} 46. Kb5 {[%clk 0:01:29.6]} 46... Nc3+ {[%clk 0:00:04.9]} 47.
Kb4 {[%clk 0:01:30.1]} 47... Ne2 {[%clk 0:00:04.3]} 48. a4 {[%clk 0:01:28.9]}
48... Ng1 {[%clk 0:00:04.3]} 49. a5 {[%clk 0:01:19.7]} 49... Nxh3 {[%clk
0:00:02.7]} 50. a6 {[%clk 0:01:19.8]} 50... h4 {[%clk 0:00:02.5]} 51. a7 {[%clk
0:01:19.7]} 1-0